Cogmind - Beta 11 @@@ ROGUE MODE // 2022.04.16 @ 12:26:56 // Winter2019/RPGLIKE Player: Rainynight Result: Destroyed by S-27 Virus with Autogun Performance ------------- Evolutions (3) 1500 Regions Visited (6) 1200 Robots Destroyed (16) 80 Value Destroyed (239) 239 Prototype IDs (3) 60 Alien Tech Used (0) 0 Bonus (0) 0 TOTAL SCORE: 3079 Bonus ------- None Cogmind --------- Core Integrity 0/600 Matter 233/300 Energy 239/240 System Corruption 0% Temperature Cool (2) Movement Hovering (56) Location -7/Factory Parts ------- > --- POWER (1) -------- Light Deuterium Engine > --- PROPULSION (2) --- Airjet Airjet > --- UTILITY (3) ------ Improved Terrain Scanner Advanced Targeting Computer > --- WEAPON (3) ------- Improved EM Pulse Cannon Improved EM Pulse Cannon > --- INVENTORY (2) ---- Improved EM Pulse Cannon Improved EM Pulse Cannon Peak State ------------ > --- POWER ------------ Light Deuterium Engine > --- PROPULSION ------- Airjet Airjet > --- UTILITY ---------- Improved Terrain Scanner Advanced Targeting Computer > --- WEAPON ----------- Improved EM Pulse Cannon Improved EM Pulse Cannon Improved EM Pulse Cannon > --- INVENTORY -------- Improved EM Pulse Cannon [Rating: 27] Favorites ----------- Power Light Deuterium Engine Engine Light Deuterium Engine Propulsion Airjet Leg Aluminum Leg Hover Unit Airjet Utility Improved Terrain Scanner Device Improved Terrain Scanner Processor Advanced Targeting Computer Weapon High-powered Shotgun Energy Gun Medium Laser Energy Cannon Improved EM Pulse Cannon Ballistic Gun High-powered Shotgun Ballistic Cannon Light Cannon Build | -11 -10 -9 -9 -8 -8 -7 ------- Run | Scr Mat Mat Min Mat Sto Fac Slots Evolved 5 | 3 . 1 1 . . . Power . | . . . . . . . Propulsion 1 | 1 . . . . . . Utility 2 | 1 . . 1 . . . Weapon 2 | 1 . 1 . . . . Parts Attached 21 | 2 2 8 1 3 4 1 Power 3 | . . 1 . . 2 . Engine 3 | . . 1 . . 2 . Core . | . . . . . . . Reactor . | . . . . . . . Propulsion 3 | 1 . 2 . . . . Treads . | . . . . . . . Leg 1 | 1 . . . . . . Wheel . | . . . . . . . Hover 2 | . . 2 . . . . Flight . | . . . . . . . Utility 2 | . . . 1 . 1 . Device 1 | . . . 1 . . . Storage . | . . . . . . . Processor 1 | . . . . . 1 . Hackware . | . . . . . . . Protection . | . . . . . . . Artifact . | . . . . . . . Weapon 13 | 1 2 5 . 3 1 1 Energy Gun 3 | 1 . 1 . . 1 . Energy Cannon 4 | . . . . 3 . 1 Ballistic Gun 5 | . 1 4 . . . . Ballistic Cannon 1 | . 1 . . . . . Launcher . | . . . . . . . Special Weapon . | . . . . . . . Impact Weapon . | . . . . . . . Slashing Weapon . | . . . . . . . Piercing Weapon . | . . . . . . . Special Melee Weapon . | . . . . . . . Unidentified Prototypes 3 | . . 1 . . 2 . Parts Lost 1 | . . 1 . . . . Power . | . . . . . . . Propulsion . | . . . . . . . Utility . | . . . . . . . Weapon 1 | . . 1 . . . . Highest Loss Streak 1 | . . 1 . . . . To Critical Strikes . | . . . . . . . Average Slot Usage (%) 72 | . 71 72 74 68 69 78 Engine 11 | . 14 12 11 11 10 11 Leg 6 | . 28 5 . . . . Hover 17 | . . 19 23 22 22 22 Device 4 | . . . 3 11 11 11 Processor 1 | . . . . . 4 11 Energy Cannon 5 | . . . . 11 22 23 Ballistic Gun 21 | . 14 32 35 13 . . Ballistic Cannon 2 | . 13 1 . . . . Naked Turns . | . . . . . . . Heaviest Build 27 | 6 8 14 15 27 20 20 Greatest Support 26 | 25 25 25 21 21 21 26 Greatest Overweight (x) 1 | . . 1 . 1 . . Average Overweight (x) . | . . . . . . . Largest Inventory Capacity 2 | 1 1 1 2 2 2 2 Average Capacity 1 | 1 1 1 1 2 2 2 Most Carried 2 | . 1 1 1 2 2 2 Average Carried 1 | . . 1 1 1 2 1 Final Capacity 2 | 1 1 1 2 2 2 2 Final Carried 2 | . 1 1 1 2 2 2 Class Distribution -------------------- 49% | Gunner 48% | Mutant Dominant Class ---------------- Mutant | -10/Materials Gunner | -9/Materials Gunner | -9/Mines Skirmisher | -8/Materials Mutant | -8/Storage Mutant | -7/Factory Resources | -11 -10 -9 -9 -8 -8 -7 ----------- Run | Scr Mat Mat Min Mat Sto Fac Matter Collected 615 | 200 46 89 280 . . . Remotely . | . . . . . . . Salvage Created 438 | . 12 . 365 . 61 . Parts 21 | . 1 . 19 . 1 . Haulers Intercepted . | . . . . . . . Recyclers Shooed 1 | . . . 1 . . . Parts Field Recycled . | . . . . . . . Retrieved Matter . | . . . . . . . Parts Self-Destructed . | . . . . . . . Prevented . | . . . . . . . Kills | -11 -10 -9 -9 -8 -8 -7 ------- Run | Scr Mat Mat Min Mat Sto Fac Combat Hostiles Destroyed 9 | . . . 8 . 1 . Guns 8 | . . . 8 . . . Cannons 1 | . . . . . 1 . Classes Destroyed 5 | . 1 . 4 . . . Worker 1 | . 1 . . . . . Tunneler 4 | . . . 4 . . . Recycler 2 | . . . 2 . . . Swarmer 6 | . . . 6 . . . Grunt 3 | . . . 2 . 1 . Best Kill Streak 5 | . 1 . 5 . 1 . Combat Bots Only 3 | . . . 3 . 1 . Max Kills in Single Turn 2 | . 1 . 2 . 1 . Gunslinging 1 | . . . 1 . . . Exploded . | . . . . . . . Melee . | . . . . . . . Uniques/NPCs Destroyed . | . . . . . . . Combat | -11 -10 -9 -9 -8 -8 -7 -------- Run | Scr Mat Mat Min Mat Sto Fac Damage Taken 801 | . . 32 99 . 643 27 Core 644 | . . 24 81 . 519 20 Absorbed by Shields . | . . . . . . . Redirected to Core 532 | . . 24 55 . 433 20 Core Remaining (%) 73 | 100 100 . 89 . 3 . Volleys Fired 34 | . 7 . 20 . 7 . Largest 3 | . 2 . 3 . 2 . Hottest 138 | . 55 . 75 . 138 . Shots Fired 82 | . 14 . 60 . 8 . Gun 67 | . 7 . 60 . . . Cannon 15 | . 7 . . . 8 . Launcher . | . . . . . . . Special . | . . . . . . . Kinetic 74 | . 14 . 60 . . . Thermal . | . . . . . . . Explosive . | . . . . . . . Electromagnetic 8 | . . . . . 8 . Robot Hit Streak 4 | . 4 . 4 . 4 . Robot Miss Streak 7 | . 2 . 7 . 1 . Penetration Max . | . . . . . . . Secondary Targets 2 | . . . 2 . . . Max Gunslinging Chain 1 | . . . 1 . . . Shots Hit Robots 51 | . 8 . 39 . 4 . Core Hits 22 | . 3 . 17 . 2 . Critical Kills . | . . . . . . . Critical Parts Destroyed . | . . . . . . . Critical Strikes . | . . . . . . . Melee Attacks . | . . . . . . . Impact . | . . . . . . . Slashing . | . . . . . . . Piercing . | . . . . . . . Sneak Attacks . | . . . . . . . Combat Hostiles . | . . . . . . . Follow-up Attacks . | . . . . . . . Damage Inflicted 884 | . 86 . 626 . 139 33 Guns 675 | . 49 . 626 . . . Cannons 159 | . 37 . . . 122 . Explosions . | . . . . . . . Melee . | . . . . . . . Ramming 50 | . . . . . 17 33 Kinetic 712 | . 86 . 626 . . . Thermal . | . . . . . . . Explosive . | . . . . . . . Electromagnetic 122 | . . . . . 122 . Impact . | . . . . . . . Slashing . | . . . . . . . Piercing . | . . . . . . . Highest Corruption 1 | . 1 . . . . . Average Corruption 1 | . 1 . . . . . Corruption Purged . | . . . . . . . Corruption Blocked . | . . . . . . . Effects 1 | . 1 . . . . . Message Errors 1 | . 1 . . . . . Overload Shots . | . . . . . . . Overflow Damage . | . . . . . . . Projectiles . | . . . . . . . Explosions . | . . . . . . . Melee . | . . . . . . . Knockbacks 2 | . 1 . . . . 1 Impact 1 | . . . . . . 1 Kinetic 1 | . 1 . . . . . Secondary . | . . . . . . . Self-Inflicted Damage 24 | . . . . . 8 16 Shots . | . . . . . . . Rammed 3 | . . . . . 2 1 Targets Rammed 3 | . . . . . 2 1 Kicked . | . . . . . . . Crushed . | . . . . . . . Highest Temperature 89 | . 2 . 54 . 89 . Average Temperature 17 | . 1 . 10 . 40 . Received Heat Transfer 351 | . . . 36 . 315 . Siege Activations . | . . . . . . . Robots Corrupted . | . . . . . . . Combat Hostiles . | . . . . . . . Parts Fried . | . . . . . . . Impact Corruptions . | . . . . . . . Robots Melted . | . . . . . . . Combat Hostiles . | . . . . . . . Parts Melted . | . . . . . . . Heat Transferred . | . . . . . . . Parts Sabotaged . | . . . . . . . Parts Stolen . | . . . . . . . Parts Stripped . | . . . . . . . Power Chain Reactions . | . . . . . . . Missiles Intercepted . | . . . . . . . Alert | -11 -10 -9 -9 -8 -8 -7 ------- Run | Scr Mat Mat Min Mat Sto Fac Peak Influence 266 | . 20 30 266 97 150 82 Initial 97 | . . 8 11 97 40 67 Average 94 | . 15 9 169 97 86 68 Maximum Alert Level 1 | . . . 1 . . . Low Security (%) 84 | 100 100 100 60 100 100 100 Level 1 15 | . . . 39 . . . Level 2 . | . . . . . . . Level 3 . | . . . . . . . Level 4 . | . . . . . . . Level 5 . | . . . . . . . High Security . | . . . . . . . Max Security . | . . . . . . . Squads Dispatched 9 | . 1 3 1 1 3 . Investigation 2 | . . . . . 2 . Extermination . | . . . . . . . Reinforcement 5 | . 1 3 . . 1 . Assault 2 | . . . 1 1 . . Garrison . | . . . . . . . Intercept . | . . . . . . . Searches Triggered . | . . . . . . . Construction Impeded . | . . . . . . . Haulers Reinforced . | . . . . . . . Active Scanning Responses . | . . . . . . . Cargo Convoy Interrupts . | . . . . . . . Stealth | -11 -10 -9 -9 -8 -8 -7 --------- Run | Scr Mat Mat Min Mat Sto Fac Distress Signals 3 | . . 1 . . 2 . Communications Jammed . | . . . . . . . Distress Signals . | . . . . . . . Times Spotted 45 | . 3 12 9 . 17 4 Peak Tracking Total 15 | . 1 11 5 . 15 2 Tactical Retreats 3 | . . . 2 . . 1 Traps | -11 -10 -9 -9 -8 -8 -7 ------- Run | Scr Mat Mat Min Mat Sto Fac Traps Triggered 4 | . 1 . . . 2 1 Indirectly . | . . . . . . . Trap Hack Attempts . | . . . . . . . Triggered . | . . . . . . . Disarmed . | . . . . . . . Reprogrammed . | . . . . . . . Reused . | . . . . . . . Traps Extracted . | . . . . . . . Installed . | . . . . . . . Triggered . | . . . . . . . Machines | -11 -10 -9 -9 -8 -8 -7 ---------- Run | Scr Mat Mat Min Mat Sto Fac Machines Disabled 1 | . . . . . 1 . Max in Single Turn 1 | . . . . . 1 . Machines Sabotaged . | . . . . . . . Garrisons Compromised . | . . . . . . . Overloaded Fab Kills . | . . . . . . . Hacking | -11 -10 -9 -9 -8 -8 -7 --------- Run | Scr Mat Mat Min Mat Sto Fac Machines Accessed 6 | . 1 1 1 . 3 . Terminals 6 | . 1 1 1 . 3 . Fabricators . | . . . . . . . Repair Stations . | . . . . . . . Recycling Units . | . . . . . . . Scanalyzers . | . . . . . . . Garrison Access . | . . . . . . . Total Hacks 13 | . 1 3 2 . 7 . Successful 4 | . . 1 1 . 2 . Failed 9 | . 1 2 1 . 5 . Catastrophic . | . . . . . . . Database Lockouts . | . . . . . . . Manual 4 | . 1 . . . 3 . Terminals 13 | . 1 3 2 . 7 . Fabricators . | . . . . . . . Repair Stations . | . . . . . . . Recycling Units . | . . . . . . . Scanalyzers . | . . . . . . . Garrison Access . | . . . . . . . Terminal Hacks 4 | . . 1 1 . 2 . Open Door 2 | . . . . . 2 . Dispatch Records 1 | . . 1 . . . . Zone Layout 1 | . . . 1 . . . Fabricator Hacks . | . . . . . . . Repair Station Hacks . | . . . . . . . Recycling Unit Hacks . | . . . . . . . Scanalyzer . | . . . . . . . Garrison Access Hacks . | . . . . . . . Unauthorized Hacks . | . . . . . . . Terminals . | . . . . . . . Fabricators . | . . . . . . . Repair Stations . | . . . . . . . Recycling Units . | . . . . . . . Scanalyzers . | . . . . . . . Garrison Access . | . . . . . . . Data Cores Recovered . | . . . . . . . Used . | . . . . . . . Hacking Detections 4 | . . 1 1 . 2 . Full Trace Events 3 | . . 1 . . 2 . Feedback Events . | . . . . . . . Feedback Blocked . | . . . . . . . Robot Schematics Acquired . | . . . . . . . Robots Built . | . . . . . . . Authchips . | . . . . . . . Time . | . . . . . . . Total Robot Build Rating . | . . . . . . . Part Schematics Acquired . | . . . . . . . Parts Built . | . . . . . . . Authchips . | . . . . . . . Time . | . . . . . . . Total Part Build Rating . | . . . . . . . Parts Repaired . | . . . . . . . Time . | . . . . . . . Parts Recycled . | . . . . . . . Recycled Matter . | . . . . . . . Retrieved Matter . | . . . . . . . Retrieved Components . | . . . . . . . Parts Scanalyzed . | . . . . . . . Part Schematics Acquired . | . . . . . . . Parts Damaged . | . . . . . . . Bothacking | -11 -10 -9 -9 -8 -8 -7 ------------ Run | Scr Mat Mat Min Mat Sto Fac Used RIF Installer . | . . . . . . . Robots Hacked . | . . . . . . . Non-combat . | . . . . . . . Combat . | . . . . . . . Robot Hacks Applied . | . . . . . . . Relay Couplers Released . | . . . . . . . Fabnet Peak Effective % . | . . . . . . . Robots Rewired . | . . . . . . . Allies Hacked . | . . . . . . . Hacks Repelled . | . . . . . . . Allies | -11 -10 -9 -9 -8 -8 -7 -------- Run | Scr Mat Mat Min Mat Sto Fac Total Allies 3 | . . . 3 . . . Largest Group 3 | . . . 3 . . . Highest-Rated Group 73 | . . . 73 . . . Highest-Rated Ally 31 | . . . 31 . . . Total Orders . | . . . . . . . Ally Attacks 15 | . . . 15 . . . Total Damage 187 | . . . 187 . . . Kills 1 | . . . 1 . . . Allies Corrupted . | . . . . . . . Allies Melted 1 | . . . 1 . . . Intel | -11 -10 -9 -9 -8 -8 -7 ------- Run | Scr Mat Mat Min Mat Sto Fac Robot Analysis Total . | . . . . . . . Derelict Logs Recovered 1 | . . . 1 . . . Drone Launches . | . . . . . . . Drone Recoveries . | . . . . . . . Exploration | -11 -10 -9 -9 -8 -8 -7 ------------- Run | Scr Mat Mat Min Mat Sto Fac Turns Passed 859 | 9 184 86 338 44 125 73 Spaces Moved 1063 | 6 129 110 474 58 168 118 Core . | . . . . . . . Treads . | . . . . . . . Legs 147 | 6 129 12 . . . . Wheels . | . . . . . . . Hover 916 | . . 98 474 58 168 118 Flight . | . . . . . . . Fastest Speed 56 | 120 120 56 56 56 56 56 Average Speed 65 | 120 120 63 56 61 56 56 Slowest Speed 120 | 120 120 120 56 116 56 56 Overloaded Moves . | . . . . . . . Propulsion Burnouts . | . . . . . . . Robots Hopped . | . . . . . . . Cave-ins Triggered . | . . . . . . . Exploration Rate (%) 27 | 2 25 25 89 6 41 5 Regions Visited 6 Branch Regions 2 Pre-discovered Areas . | . . . . . . . Known Exits Taken . | . . . . . . . Unknown Exits Taken 6 | 1 1 1 1 1 1 . Scrap Searched 1 | . . . 1 . . . Spaces Dug . | . . . . . . . Terrain Destroyed . | . . . . . . . Melee . | . . . . . . . Projectile . | . . . . . . . AOE . | . . . . . . . Terrain Rammed . | . . . . . . . Walls Destroyed . | . . . . . . . Machines Disabled . | . . . . . . . Actions | -11 -10 -9 -9 -8 -8 -7 --------- Run | Scr Mat Mat Min Mat Sto Fac Total 1160 | 7 146 125 501 67 189 125 Wait 18 | . 5 . 3 . 6 4 Move 1057 | 5 128 109 473 57 167 118 Hop . | . . . . . . . Pick Up 3 | . 1 . 1 1 . . Fast Attach 18 | 2 1 7 1 3 4 . Attach 1 | . . . . . . 1 Detach 4 | . 1 . . 2 . 1 Swap 3 | . 1 2 . . . . Drop 17 | . 2 7 1 4 3 . Fire 34 | . 7 . 20 . 7 . Melee . | . . . . . . . Ram 3 | . . . . . 2 1 Kick . | . . . . . . . Crush . | . . . . . . . Escape Stasis . | . . . . . . . Rewire . | . . . . . . . Trap . | . . . . . . . Miscellaneous 2 | . . . 2 . . . Route ------- -11/Scrapyard -10/Materials -9/Materials -9/Mines (discovered 2 exits: [*Mat x2]) -8/Materials -8/Storage -7/Factory History --------- Turn | Location | Event 1 | -11/Scrapyard | Upgraded with Propulsion slot (x1) 1 | -11/Scrapyard | Upgraded with Utility slot (x1) 1 | -11/Scrapyard | Upgraded with Weapon slot (x1) 1 | -11/Scrapyard | Discovered new exit (range 2) 10 | -11/Scrapyard | Entered Materials 166 | -10/Materials | Discovered new exit (range 8) 194 | -10/Materials | Entered another Materials area 196 | -9/Materials | Reached level 2 196 | -9/Materials | Upgraded with Weapon slot (x1) 271 | -9/Materials | Discovered new exit (range 16) 280 | -9/Materials | Entered Mines 323 | -9/Mines | Learned Materials garrison access intel 341 | -9/Mines | Discovered new exit (range 12) 388 | -9/Mines | Met a Derelict testing a Signal Generator 394 | -9/Mines | Found Signal Generator 486 | -9/Mines | Reached level 3 499 | -9/Mines | Upgraded with Utility slot (x1) 510 | -9/Mines | Build established: Gunner 606 | -9/Mines | Discovered new exit (range 8) 618 | -9/Mines | Entered Materials 619 | -8/Materials | Loaded intel: 1 garrison access location 620 | -8/Materials | Reached level 4 622 | -8/Materials | Discovered new exit (range 17) 662 | -8/Materials | Entered Storage 748 | -8/Storage | Core integrity fell below 50% 769 | -8/Storage | Discovered new exit (range 17) 782 | -8/Storage | Core integrity fell below 20% 787 | -8/Storage | Entered Factory 788 | -7/Factory | Core integrity fell below 50% 788 | -7/Factory | Core integrity fell below 20% 789 | -7/Factory | Reached level 5 860 | -7/Factory | Destroyed by S-27 Virus with Autogun Last Messages --------------- >>Open(Door) Sealed Heavy Doors opened. 00783_ Slammed into G-47 Trooper. 00783_ Destabilizing: System interference. 00783_ Adv. Targeting Computer temporarily disabled. 00783_ Imp. EM Pulse Cannon temporarily disabled. 00784_ Slammed into G-47 Trooper. LOCATION=UNKNOWN GOAL=ESCAPE 00789_ Reached level 5. 00789_ Upgraded: Heat Dissipation (+12) 00789_ Upgraded: Energy Generation (+5) 00789_ Upgraded: Energy Storage (+100) 00789_ Upgraded: Mass Support (+5) 00830_ ALERT: All DSF locations entering lockdown mode. 00838_ Slammed into K-01 Serf. 00838_ K-01 Serf knocked back. 00860_ Triggered Ambush Trap. 00860_ S-27 Virus emerges from a hatch in the floor. 00860_ G-47 Trooper emerges from a hatch in the floor. Map ----- +----------------------------------------------------+ | ?????????????????????????????????????????????????? | | ?????????????????????????????????????????????????? | | ?????????????????????????????????????????????????? | | ?????????????????????????????????????????????????? | | ?????????????????????????????????????????????????? | | ?????????????????????????????????????????????????? | | ?????????????????????????????????????????????????? | | ?????????????????????????????????????????????????? | | ?????????????????????????????????????????????????? | | ????????????????????????#????????????????????????? | | ?????????????????????????##??????#????#??????????? | | ??????????????????????????##???#?#?#??#???#?##???? | | ?????????????????????????????#??####????#?#??????? | | ??????????????????????????????#?###?????#?##?#?#?? | | ???????????????#?????????#??#######?#??###???????? | | ?????????????????????#?? ? ##??#?####??###??# | | ??????????????????#????# ??" # ??# ?? ? !#?#?? | | ??????????????????? ? ?# """ #??## ??"? ##??? | | ?????????????? ? ??? # """ ! ###?# """" ###?? | | ??????????????????? ???# ##?##! """" #? ? | | ??????????????????? ?# """ #?### """" # ?? | | ??????????? ?????????? # """ #?#?# """" # | | ?????????????????#? ???# """ #?### """" #?? | | ????????????? ??##? ?##? ?####? #? | | ????????????????#?# #####+######?#?? ?? | | ???????????#??#???# @g ##########+#### | | ???????????????#?## s # | | ???????????????#??# # | | ??????????????#???# """"" """"" """ + | | ??????????????????# """"" """"" "T" # | | ??????????????????# """ """ " " # | | ?????????????????## # | | ????????????????#?###### """"" """"" """ # | | ???????????????????????# """"" """"" """ # | | ????????????????#??#?#?# """ """ """ # | | ???????????????????????# # | | ??????????????????? ???# + | | ??????????????????????### ########## | | ?????????????????????? ########## | | ???????????????????? ? ########## | | ?????????????????????? #?######## | | ????????????????????????# ########## | | ????????????????????????### ### T###### | | ??????????????????????????# ??##?##?### ########## | | ????????????????????????#??+?#?#?##???# #?##? | | ??????????????????????????????#?###?### #### | | ?????????????????????????? ??#? ??? ##?# """ | | ???????????????????????????????? ? ? ##?# """ | | ?????????????????????????"? ?# ???"? ? #?##?? """ | | ?????????????????????????????? "T?? ###?? | +----------------------------------------------------+ Best States ------------- Heat Dissipation 43 Energy Generation 19 Energy Capacity 240 Matter Stores 300 Matter Capacity 300 Sight Range 17 Terrain Scan Range 16 Terrain Scan Density 710 Resistance: KI 10 Evasion (%) 55 Targeting Accuracy 8 Item Schematics ----------------- None Robot Schematics ------------------ None Fabricated ------------ Nothing Alien Tech Used ----------------- None Achievements -------------- None Challenges ------------ None RPGLIKE | -11 -10 -9 -9 -8 -8 -7 --------- Run | Scr Mat Mat Min Mat Sto Fac Levels Raised 4 | . . 1 1 1 . 1 XP Earned 10325 | 3000 . 1500 1650 1500 1175 1500 XP Spent 8775 | 2800 . 1300 1900 1290 . 1485 Upgrades 28 | 9 . 2 3 8 . 6 Propulsion Slot 1 | 1 . . . . . . Utility Slot 2 | 1 . . 1 . . . Weapon Slot 2 | 1 . 1 . . . . Heat Dissipation 3 | 1 . . . . . 2 Energy Generation 1 | . . . . . . 1 Energy Storage 2 | . . . . . . 2 Mass Support 2 | 1 . . . . . 1 Inventory Capacity 2 | 1 . . 1 . . . Sight Range 1 | . . . . 1 . . Terrain Scan Density 7 | . . . . 7 . . Ranged Accuracy 3 | 1 . 1 1 . . . KI Resistance % 2 | 2 . . . . . . Protomatter Created 14 | . . . 14 . . . Integrity Restored 42 | . . . 42 . . . Core 42 | . . . 42 . . . Protomatter Decayed . | . . . . . . . Game ------ Seed HoverArmageddonRouter Manual? 0 Play Time 00:14:30 Cumulative 89.2 hours Start 2022.04.16 @ 12:13:56 End 2022.04.16 @ 12:26:56 Sessions 1 Manual Loads 0 Difficulty Rogue Special Mode Winter2019/RPGLIKE Game No. 106 Rogue 106 Adventurer 0 Explorer 0 Win Type - Total 3 Types 3/0/0/0/0/0/0/0/0 Lore% 51 Gallery% 57 Achievement% 42 Wizard Run 0 Options --------- ASCII 1 Keyboard 1 Movement Numpad Keybinds 0 Fullscreen 1 Font 18/X11 Map View 76x50 Tactical HUD 1 Map Filters NONE Filters NONE Steam 1 RUN: 05f9bc79-8f14-4667-974d-71efc76238e5